[Event "EYCC 2017"]
[Site "Mamaia"]
[Date "2017.09.09"]
[Round "5"]
[White "Bjerre, Jonas Buhl"]
[Black "Mis, Mieszko"]
[Result "1/2-1/2"]
[ECO "C91"]
[WhiteElo "2348"]
[BlackElo "2245"]
[Annotator "NA"]
[PlyCount "43"]
[EventDate "2017.??.??"]
[EventType "swiss"]
[EventCountry "ROU"]
[SourceTitle "playchess.com"]
[Source "ChessBase"]
[SourceQuality "1"]
[TimeControl "40/5400+30:1800+30"]

1. e4 {[%emt 0:00:00]} e5 {[%emt 0:00:10]} 2. Nf3 {[%emt 0:00:00]} Nc6 {[%emt 0:00:10]} 3. Bb5 {[%emt 0:00:00]} a6 {[%emt 0:00:17]} 4. Ba4 {[%emt 0:00:18]} Nf6 {[%emt 0:00:11]} 5. O-O {[%emt 0:00:22]} Be7 {[%emt 0:00:15]} 6. Re1 {[%emt 0:00:37]} b5 {[%emt 0:00:06]} 7. Bb3 {[%emt 0:00:03]} O-O {[%emt 0:00:18]} 8. d4 {[%emt 0:01:58]} d6 {[%emt 0:00:12]} 9. c3 {[%emt 0:00:29]} Bg4 {[%emt 0:00:05]} 10. Be3 {[%emt 0:01:08]} exd4 {[%emt 0:00:16]} 11. cxd4 {[%emt 0:00:16]} Na5 {[%emt 0:00:05]} 12. Bc2 {[%emt 0:00:39]} c5 {[%emt 0:00:04]} 13. Nbd2 {[%emt 0:04:34]} cxd4 {[%emt 0:00:18]} 14. Bxd4 {[%emt 0:02:17]} Nc6 {[%emt 0:00:02]} 15. Be3 {[%emt 0:01:16]} d5 {[%emt 0:00:31]} 16. h3 {[%emt 0:13:46]} Bh5 {[%emt 0:00:26]} 17. Bf4 {[%emt 0:16:06]} Bxf3 {[%emt 0:08:46]} 18. Nxf3 {[%emt 0:03:45]} Nxe4 {[%emt 0:01:56]} 19. Bxe4 {[%emt 0:01:06]} dxe4 {[%emt 0:00:03]} 20. Rxe4 {[%emt 0:00:38]} Bf6 {[%emt 0:06:23]} 21. Re2 {[%emt 0:09:22]} Qxd1+ {[%emt 0:01:34]} 22. Rxd1 {[%emt 0:01:05]} 1/2-1/2

[Event "EYCC 2017"]
[Site "Mamaia"]
[Date "2017.09.09"]
[Round "5"]
[White "Gavrilescu, David"]
[Black "Remizov, Yaroslav"]
[Result "1/2-1/2"]
[ECO "B10"]
[WhiteElo "2346"]
[BlackElo "2146"]
[Annotator "NA"]
[PlyCount "41"]
[EventDate "2017.??.??"]
[EventType "swiss"]
[EventCountry "ROU"]
[SourceTitle "playchess.com"]
[Source "ChessBase"]
[SourceQuality "1"]
[TimeControl "40/5400+30:1800+30"]

1. e4 {[%emt 0:00:00]} c6 {[%emt 0:00:02]} 2. Nc3 {[%emt 0:00:27]} d5 {[%emt 0:00:07]} 3. Nf3 {[%emt 0:00:40]} Nf6 {[%emt 0:00:07]} 4. e5 {[%emt 0:01:04]} Ne4 {[%emt 0:00:05]} 5. Ne2 {[%emt 0:00:45]} Bf5 {[%emt 0:01:12]} 6. d3 {[%emt 0:01:51]} Nc5 {[%emt 0:00:19]} 7. Ng3 {[%emt 0:07:30]} Bg6 {[%emt 0:03:33]} 8. c3 {[%emt 0:02:27]} e6 {[%emt 0:01:11]} 9. Be2 {[%emt 0:03:12]} Be7 {[%emt 0:00:35]} 10. O-O {[%emt 0:01:55]} O-O {[%emt 0:00:38]} 11. Be3 {[%emt 0:06:26]} Ncd7 {[%emt 0:03:02]} 12. c4 {[%emt 0:06:41]} dxc4 {[%emt 0:05:22]} 13. dxc4 {[%emt 0:01:09]} Qc7 {[%emt 0:00:47]} 14. Bf4 {[%emt 0:02:53]} Rd8 {[%emt 0:04:44]} 15. Qc1 {[%emt 0:03:41]} a5 {[%emt 0:01:45]} 16. Rd1 {[%emt 0:04:54]} Na6 {[%emt 0:04:44]} 17. h4 {[%emt 0:06:34]} Ndc5 {[%emt 0:11:06]} 18. Qe3 {[%emt 0:04:32]} Nb4 {[%emt 0:03:00]} 19. Ne1 {[%emt 0:01:33]} Rxd1 {[%emt 0:15:13]} 20. Rxd1 {[%emt 0:01:55]} Rd8 {[%emt 0:02:23]} 21. h5 1/2-1/2

[Event "EYCC 2017"]
[Site "Mamaia"]
[Date "2017.09.09"]
[Round "5"]
[White "Badelka, Olga"]
[Black "Maltsevskaya, Aleksandra"]
[Result "1-0"]
[ECO "B13"]
[WhiteElo "2335"]
[BlackElo "2271"]
[Annotator "NA"]
[PlyCount "45"]
[EventDate "2017.??.??"]
[EventType "swiss"]
[EventCountry "ROU"]
[SourceTitle "playchess.com"]
[Source "ChessBase"]
[SourceQuality "1"]
[TimeControl "40/5400+30:1800+30"]

1. c4 {[%emt 0:00:00]} c6 {[%emt 0:00:07]} 2. e4 {[%emt 0:00:00]} d5 {[%emt 0:00:05]} 3. exd5 {[%emt 0:00:00]} cxd5 {[%emt 0:00:05]} 4. d4 {[%emt 0:00:00]} Nf6 {[%emt 0:00:08]} 5. Nc3 {[%emt 0:00:18]} Nc6 {[%emt 0:00:07]} 6. Bg5 {[%emt 0:00:37]} Be6 {[%emt 0:00:07]} 7. Be2 {[%emt 0:01:07]} g6 {[%emt 0:01:32]} 8. Bf3 {[%emt 0:03:23]} Qb6 {[%emt 0:12:23]} 9. Bxf6 {[%emt 0:18:13]} exf6 {[%emt 0:00:12]} 10. cxd5 {[%emt 0:00:08]} Nxd4 $18 {[%emt 0:11:19]} ({Much worse is} 10... Qxb2 11. Nge2 $18) 11. dxe6 {[%emt 0:00:13]} Qxb2 {[%emt 0:00:12]} 12. Qa4+ {[%emt 0:10:10]} b5 {[%emt 0:02:19]} 13. Qxd4 {[%emt 0:00:06]} Qxa1+ 14. Ke2 {[%emt 0:00:26]} Qb2+ {[%emt 0:02:18]} 15. Kd3 {[%emt 0:01:16]} fxe6 {[%emt 0:30:28]} 16. Bxa8 {[%emt 0:00:52]} Kf7 {[%emt 0:06:45]} 17. Nf3 {[%emt 0:00:38]} b4 {[%emt 0:06:09]} 18. Nb5 {[%emt 0:02:48]} Qxd4+ {[%emt 0:07:11]} 19. Nbxd4 {[%emt 0:00:47]} Bh6 {[%emt 0:01:03]} 20. Bc6 {[%emt 0:01:18]} e5 {[%emt 0:01:55]} 21. Nb3 {[%emt 0:01:12]} Rc8 {[%emt 0:02:50]} 22. Na5 {[%emt 0:00:22]} e4+ {[%emt 0:00:48]} 23. Kxe4 {[%emt 0:01:10]} 1-0

[Event "EYCC 2017"]
[Site "Mamaia"]
[Date "2017.09.09"]
[Round "5"]
[White "Schitco, Ivan"]
[Black "Velkovski, Kristijan"]
[Result "1/2-1/2"]
[ECO "D35"]
[WhiteElo "2325"]
[BlackElo "1814"]
[Annotator "NA"]
[PlyCount "77"]
[EventDate "2017.??.??"]
[EventType "swiss"]
[EventCountry "ROU"]
[SourceTitle "playchess.com"]
[Source "ChessBase"]
[SourceQuality "1"]
[TimeControl "40/5400+30:1800+30"]

1. d4 {[%emt 0:00:00]} d5 {[%emt 0:00:16]} 2. c4 {[%emt 0:00:00]} e6 {[%emt 0:00:06]} 3. Nc3 {[%emt 0:00:00]} Nf6 {[%emt 0:00:12]} 4. cxd5 {[%emt 0:00:09]} exd5 {[%emt 0:00:23]} 5. Bg5 {[%emt 0:00:07]} Be7 {[%emt 0:00:56]} 6. e3 {[%emt 0:00:26]} c6 {[%emt 0:00:44]} 7. Bd3 {[%emt 0:00:44]} Be6 {[%emt 0:01:16]} 8. Nf3 {[%emt 0:03:44]} Nbd7 {[%emt 0:00:56]} 9. O-O {[%emt 0:01:47]} O-O {[%emt 0:00:19]} 10. Qc2 {[%emt 0:00:32]} h6 {[%emt 0:02:55]} 11. Bh4 {[%emt 0:00:42]} Rc8 {[%emt 0:01:23]} 12. h3 {[%emt 0:10:51]} c5 {[%emt 0:06:12]} 13. Rfd1 {[%emt 0:05:13]} c4 {[%emt 0:07:33]} 14. Bf5 {[%emt 0:08:46]} Qb6 {[%emt 0:05:07]} 15. Ne5 {[%emt 0:06:50]} Rfe8 {[%emt 0:06:20]} 16. Rab1 {[%emt 0:06:18]} Bxf5 {[%emt 0:04:48]} 17. Qxf5 {[%emt 0:00:25]} Qe6 {[%emt 0:00:50]} 18. Qxe6 {[%emt 0:03:11]} fxe6 {[%emt 0:01:40]} 19. Nxd7 {[%emt 0:01:25]} Nxd7 {[%emt 0:00:19]} 20. Bxe7 {[%emt 0:00:14]} Rxe7 {[%emt 0:00:10]} 21. b3 {[%emt 0:07:11]} a6 {[%emt 0:04:18]} 22. a4 {[%emt 0:04:22]} Nf6 {[%emt 0:05:56]} 23. b4 {[%emt 0:02:56]} b6 {[%emt 0:01:27]} 24. f3 {[%emt 0:04:07]} Kf7 {[%emt 0:10:12]} 25. e4 {[%emt 0:05:21]} Rd8 {[%emt 0:02:32]} 26. e5 {[%emt 0:03:59]} Nh5 {[%emt 0:00:47]} 27. Ne2 {[%emt 0:00:07]} g5 {[%emt 0:02:36]} 28. g3 {[%emt 0:00:14]} Kg6 {[%emt 0:01:24]} 29. Kf2 {[%emt 0:01:13]} Rf8 {[%emt 0:00:42]} 30. Ke3 {[%emt 0:00:15]} Ref7 {[%emt 0:01:38]} 31. Rf1 {[%emt 0:00:23]} Kh7 {[%emt 0:00:43]} 32. Rf2 {[%emt 0:01:35]} Rg8 {[%emt 0:02:42]} 33. Rc1 {[%emt 0:01:56]} Rgf8 {[%emt 0:00:20]} 34. Rd1 {[%emt 0:00:06]} Rg8 {[%emt 0:00:24]} 35. Re1 {[%emt 0:00:04]} Rgf8 {[%emt 0:00:10]} 36. Ref1 {[%emt 0:00:05]} Kh8 {[%emt 0:02:48]} 37. Rh1 {[%emt 0:00:56]} Kh7 {[%emt 0:04:08]} 38. Rc1 {[%emt 0:04:48]} Rg8 {[%emt 0:01:11]} 39. Rc3 {[%emt 0:00:29]} 1/2-1/2

[Event "EYCC 2017"]
[Site "Mamaia"]
[Date "2017.09.09"]
[Round "5"]
[White "Antova, Gabriela"]
[Black "Zotova, Anastasia"]
[Result "1/2-1/2"]
[ECO "D70"]
[WhiteElo "2256"]
[BlackElo "2009"]
[Annotator "NA"]
[PlyCount "44"]
[EventDate "2017.??.??"]
[EventType "swiss"]
[EventCountry "ROU"]
[SourceTitle "playchess.com"]
[Source "ChessBase"]
[SourceQuality "1"]
[TimeControl "40/5400+30:1800+30"]

1. d4 {[%emt 0:00:00]} Nf6 {[%emt 0:00:07]} 2. c4 {[%emt 0:00:00]} g6 {[%emt 0:00:04]} 3. Nf3 {[%emt 0:00:00]} Bg7 {[%emt 0:00:09]} 4. g3 {[%emt 0:00:00]} c5 {[%emt 0:01:12]} 5. Bg2 {[%emt 0:00:09]} Qa5+ {[%emt 0:00:22]} 6. Bd2 {[%emt 0:10:40]} Qb6 {[%emt 0:00:10]} 7. dxc5 {[%emt 0:00:55]} Qxc5 {[%emt 0:00:05]} 8. Qb3 {[%emt 0:06:14]} Ne4 {[%emt 0:06:55]} 9. Be3 {[%emt 0:01:58]} Qa5+ {[%emt 0:00:09]} 10. Nbd2 {[%emt 0:06:07]} Nc5 {[%emt 0:04:50]} 11. Qc2 {[%emt 0:04:54]} Nc6 {[%emt 0:02:28]} 12. O-O {[%emt 0:01:49]} d6 {[%emt 0:01:34]} 13. Nb3 {[%emt 0:03:44]} Nxb3 {[%emt 0:04:15]} 14. Qxb3 {[%emt 0:00:27]} O-O {[%emt 0:00:58]} 15. a3 {[%emt 0:03:42]} Rb8 {[%emt 0:02:26]} 16. Rac1 {[%emt 0:06:15]} b5 $11 {[%emt 0:12:23]} 17. c5 {[%emt 0:03:12]} Be6 {[%emt 0:07:47]} 18. Qc2 {[%emt 0:00:22]} Bf5 {[%emt 0:00:33]} 19. Qb3 {[%emt 0:06:47]} Be6 {[%emt 0:01:59]} 20. Qc2 {[%emt 0:00:07]} Bf5 {[%emt 0:00:15]} 21. Qb3 {[%emt 0:03:04]} Be6 {[%emt 0:00:26]} 22. Qc2 {[%emt 0:00:21]} Bf5 {[%emt 0:00:07]} 1/2-1/2

[Event "EYCC 2017"]
[Site "Mamaia"]
[Date "2017.09.09"]
[Round "5"]
[White "Georgescu, Lena"]
[Black "Posuniak, Weronika"]
[Result "1-0"]
[ECO "B06"]
[WhiteElo "2246"]
[BlackElo "1856"]
[Annotator "NA"]
[PlyCount "49"]
[EventDate "2017.??.??"]
[EventType "swiss"]
[EventCountry "ROU"]
[SourceTitle "playchess.com"]
[Source "ChessBase"]
[SourceQuality "1"]
[TimeControl "40/5400+30:1800+30"]

1. e4 {[%emt 0:00:00]} g6 {[%emt 0:00:06]} 2. d4 {[%emt 0:00:00]} Bg7 {[%emt 0:00:05]} 3. Nc3 {[%emt 0:00:01]} d5 {[%emt 0:00:09]} 4. Nf3 {[%emt 0:05:18]} Bg4 {[%emt 0:03:44]} 5. Nxd5 {[%emt 0:03:10]} c6 {[%emt 0:03:28]} 6. Nc3 {[%emt 0:01:00]} Bxf3 {[%emt 0:01:41]} 7. Qxf3 {[%emt 0:00:11]} Qxd4 {[%emt 0:00:25]} 8. Be2 {[%emt 0:07:10]} Nd7 {[%emt 0:11:24]} 9. O-O {[%emt 0:00:48]} Ngf6 {[%emt 0:02:19]} 10. Rd1 {[%emt 0:08:37]} Qb6 {[%emt 0:01:13]} 11. Be3 {[%emt 0:04:03]} Qxb2 {[%emt 0:10:39]} 12. Bd4 {[%emt 0:17:22]} e5 {[%emt 0:04:08]} 13. Nb5 {[%emt 0:07:43]} exd4 {[%emt 0:01:00]} 14. Rab1 {[%emt 0:00:38]} Qxc2 {[%emt 0:05:43]} 15. Nc7+ {[%emt 0:02:15]} Ke7 {[%emt 0:01:58]} 16. Nxa8 {[%emt 0:00:31]} Rxa8 {[%emt 0:00:07]} 17. Rxb7 {[%emt 0:04:13]} Qxe4 {[%emt 0:07:40]} 18. Qa3+ {[%emt 0:00:09]} Ke8 {[%emt 0:03:02]} 19. Bf3 {[%emt 0:03:48]} Qe6 {[%emt 0:04:31]} 20. Kf1 {[%emt 0:07:03]} Bf8 {[%emt 0:04:39]} 21. Qa4 {[%emt 0:01:38]} Ne5 {[%emt 0:01:22]} 22. Re1 {[%emt 0:02:31]} Be7 {[%emt 0:01:32]} 23. Qxd4 {[%emt 0:04:10]} Nfd7 {[%emt 0:02:33]} 24. Rxd7 {[%emt 0:03:40]} Kf8 {[%emt 0:06:06]} 25. Qxe5 1-0

[Event "EYCC 2017"]
[Site "Mamaia"]
[Date "2017.09.09"]
[Round "5"]
[White "Can, Isik"]
[Black "Lazavik, Denis"]
[Result "1-0"]
[ECO "C68"]
[WhiteElo "2239"]
[BlackElo "1989"]
[Annotator "NA"]
[PlyCount "135"]
[EventDate "2017.??.??"]
[EventType "swiss"]
[EventCountry "ROU"]
[SourceTitle "playchess.com"]
[Source "ChessBase"]
[SourceQuality "1"]
[TimeControl "40/5400+30:1800+30"]

1. e4 {[%emt 0:00:00]} e5 {[%emt 0:00:38]} 2. Nf3 {[%emt 0:00:00]} Nc6 {[%emt 0:00:29]} 3. Bb5 {[%emt 0:00:00]} a6 {[%emt 0:00:25]} 4. Bxc6 {[%emt 0:00:00]} dxc6 {[%emt 0:00:22]} 5. O-O {[%emt 0:00:00]} Bg4 {[%emt 0:00:38]} 6. h3 {[%emt 0:00:11]} h5 {[%emt 0:00:17]} 7. d3 {[%emt 0:00:10]} Qf6 {[%emt 0:00:32]} 8. Nbd2 {[%emt 0:00:07]} Ne7 {[%emt 0:00:37]} 9. Re1 {[%emt 0:00:14]} Ng6 {[%emt 0:00:14]} 10. d4 {[%emt 0:00:08]} Bd6 {[%emt 0:00:21]} 11. hxg4 {[%emt 0:00:56]} hxg4 {[%emt 0:00:08]} 12. Nh2 {[%emt 0:00:03]} Rxh2 {[%emt 0:00:27]} 13. Qxg4 {[%emt 0:00:10]} Qh4 {[%emt 0:00:28]} 14. Qxh4 {[%emt 0:00:06]} Rxh4 {[%emt 0:00:07]} 15. Nf3 {[%emt 0:00:05]} Rh5 {[%emt 0:00:08]} 16. Be3 {[%emt 0:09:11]} O-O-O {[%emt 0:06:27]} 17. g3 {[%emt 0:02:46]} exd4 {[%emt 0:08:55]} 18. Bxd4 {[%emt 0:01:38]} f6 {[%emt 0:07:01]} 19. Kg2 {[%emt 0:07:22]} c5 {[%emt 0:11:33]} 20. Bc3 {[%emt 0:07:30]} c4 {[%emt 0:05:04]} 21. a4 {[%emt 0:03:33]} Rhh8 {[%emt 0:09:14] [#]} ({Black should try} 21... Rdh8 $11) 22. a5 $1 {[%emt 0:07:03]} Be5 $16 {[%emt 0:10:04]} 23. Nxe5 {[%emt 0:26:48]} Nxe5 {[%emt 0:00:17]} 24. f3 {[%emt 0:06:09]} Nf7 {[%emt 0:08:41]} 25. Ra4 {[%emt 0:07:50]} Nd6 {[%emt 0:00:28]} 26. f4 {[%emt 0:00:53]} Rh5 {[%emt 0:04:04]} 27. e5 {[%emt 0:01:58]} fxe5 {[%emt 0:01:34]} 28. fxe5 {[%emt 0:05:34]} Nb5 {[%emt 0:01:09]} 29. Rxc4 {[%emt 0:00:34]} Re8 {[%emt 0:02:29]} 30. g4 {[%emt 0:03:15]} Rg5 {[%emt 0:01:08]} 31. Kg3 {[%emt 0:03:01]} Nxc3 {[%emt 0:05:33]} 32. Kf4 {[%emt 0:00:11]} Rg6 {[%emt 0:00:55]} 33. Rxc3 {[%emt 0:00:07]} Rf8+ {[%emt 0:00:11]} 34. Kg3 {[%emt 0:00:09]} Re6 {[%emt 0:00:37]} 35. Rc5 {[%emt 0:03:21]} g5 {[%emt 0:01:57]} 36. Re3 {[%emt 0:01:28]} Rfe8 {[%emt 0:03:15]} 37. Kf3 {[%emt 0:01:33]} Rf8+ {[%emt 0:01:18]} 38. Kg3 {[%emt 0:00:05]} Rfe8 {[%emt 0:00:07]} 39. Kf2 {[%emt 0:01:40]} c6 {[%emt 0:01:29]} 40. Ke2 {[%emt 0:00:00]} Kd7 {[%emt 0:01:23]} 41. Kd3 {[%emt 0:05:32]} Rf8 {[%emt 0:00:36]} 42. Rc4 {[%emt 0:01:02]} Kc7 {[%emt 0:01:44]} 43. Rce4 {[%emt 0:00:47]} Rd8+ {[%emt 0:00:34]} 44. Kc4 {[%emt 0:00:44]} Rde8 {[%emt 0:01:12]} 45. Kc5 {[%emt 0:07:18]} Rd8 {[%emt 0:00:30]} 46. c4 {[%emt 0:00:21]} Rde8 {[%emt 0:00:09]} 47. b4 {[%emt 0:01:08]} R8e7 {[%emt 0:00:42]} 48. Rf3 {[%emt 0:08:29]} Rxe5+ {[%emt 0:01:37]} 49. Rxe5 {[%emt 0:00:01]} Rxe5+ {[%emt 0:00:08]} 50. Kd4 {[%emt 0:00:02]} Re7 {[%emt 0:05:11]} 51. Rf5 {[%emt 0:00:39]} Rd7+ {[%emt 0:00:39]} 52. Kc5 {[%emt 0:00:14]} Rg7 {[%emt 0:03:22]} 53. Rf6 {[%emt 0:05:42]} Re7 {[%emt 0:12:42]} 54. Rg6 {[%emt 0:00:11]} Re5+ {[%emt 0:00:35]} 55. Kd4 {[%emt 0:00:07]} Re7 {[%emt 0:00:12]} 56. Rxg5 {[%emt 0:00:16]} b6 {[%emt 0:00:20]} 57. axb6+ {[%emt 0:03:42]} Kxb6 {[%emt 0:00:04]} 58. Re5 {[%emt 0:00:50]} Rd7+ {[%emt 0:00:51]} 59. Ke4 {[%emt 0:00:36]} Rd1 {[%emt 0:00:10]} 60. g5 {[%emt 0:00:04]} Re1+ {[%emt 0:00:26]} 61. Kf5 {[%emt 0:00:10]} Rf1+ {[%emt 0:00:38]} 62. Ke6 {[%emt 0:00:13]} c5 {[%emt 0:02:28]} 63. Rxc5 {[%emt 0:00:35]} Rb1 {[%emt 0:00:07]} 64. g6 {[%emt 0:00:37]} Rxb4 {[%emt 0:00:05]} 65. Rc8 {[%emt 0:00:22]} Rb1 {[%emt 0:00:13]} 66. g7 {[%emt 0:00:06]} Re1+ {[%emt 0:00:03]} 67. Kd5 {[%emt 0:00:07]} Rd1+ {[%emt 0:00:04]} 68. Ke4 {[%emt 0:00:04]} 1-0

[Event "EYCC 2017"]
[Site "Mamaia"]
[Date "2017.09.09"]
[Round "5"]
[White "Morgunov, Marc"]
[Black "Dudek, Vojtech"]
[Result "1-0"]
[ECO "B52"]
[WhiteElo "2199"]
[BlackElo "1951"]
[Annotator "NA"]
[PlyCount "67"]
[EventDate "2017.??.??"]
[EventType "swiss"]
[EventCountry "ROU"]
[SourceTitle "playchess.com"]
[Source "ChessBase"]
[SourceQuality "1"]
[TimeControl "40/5400+30:1800+30"]

1. e4 {[%emt 0:00:00]} c5 2. Nf3 {[%emt 0:00:00]} d6 {[%emt 0:01:12]} 3. Bb5+ {[%emt 0:00:47]} Bd7 {[%emt 0:01:03]} 4. Bxd7+ {[%emt 0:03:17]} Qxd7 {[%emt 0:01:32]} 5. O-O {[%emt 0:01:25]} Nc6 {[%emt 0:02:57]} 6. c3 {[%emt 0:03:23]} Nf6 {[%emt 0:00:53]} 7. Qe2 {[%emt 0:02:01]} e6 {[%emt 0:03:44]} 8. d4 {[%emt 0:05:30]} cxd4 {[%emt 0:00:36]} 9. cxd4 {[%emt 0:00:49]} Be7 {[%emt 0:01:02]} 10. Nc3 {[%emt 0:01:04]} O-O {[%emt 0:01:41]} 11. d5 {[%emt 0:13:47]} Ne5 {[%emt 0:17:22]} 12. dxe6 {[%emt 0:12:42]} Nxf3+ {[%emt 0:00:52]} 13. Qxf3 {[%emt 0:00:06]} fxe6 {[%emt 0:00:29]} 14. Qd3 {[%emt 0:04:07]} Ng4 {[%emt 0:08:55]} 15. Qg3 {[%emt 0:09:23]} Ne5 {[%emt 0:01:13]} 16. Rd1 {[%emt 0:02:50]} Ng6 {[%emt 0:14:44]} 17. Be3 {[%emt 0:05:12]} Rad8 {[%emt 0:07:08]} 18. a4 {[%emt 0:09:59]} Bh4 {[%emt 0:03:40]} 19. Qh3 {[%emt 0:00:38]} Bf6 {[%emt 0:01:59]} 20. Nb5 {[%emt 0:06:19]} Qe7 {[%emt 0:01:02]} 21. Rac1 {[%emt 0:02:52]} Bxb2 {[%emt 0:03:49]} 22. Rc7 {[%emt 0:00:56]} Qf6 {[%emt 0:00:13]} 23. Rxb7 {[%emt 0:01:39]} a6 {[%emt 0:00:31]} 24. Nc7 {[%emt 0:01:49]} Rd7 {[%emt 0:01:49]} 25. Nd5 {[%emt 0:02:19]} Qf7 {[%emt 0:01:40]} 26. Rxb2 {[%emt 0:00:11]} exd5 {[%emt 0:00:08]} 27. exd5 {[%emt 0:02:44]} Ne5 {[%emt 0:02:44]} 28. Rc2 {[%emt 0:00:55]} Re8 {[%emt 0:01:36]} 29. Qh4 {[%emt 0:02:24]} Qf5 {[%emt 0:00:46]} 30. Rc3 {[%emt 0:00:26]} Ng4 {[%emt 0:01:12]} 31. Bb6 {[%emt 0:01:38]} Rde7 {[%emt 0:01:38]} 32. f3 {[%emt 0:00:53]} Qxd5 {[%emt 0:01:30]} 33. Rcc1 {[%emt 0:01:50]} Qb3 {[%emt 0:02:05]} 34. Rb1 1-0

[Event "EYCC 2017"]
[Site "Mamaia"]
[Date "2017.09.09"]
[Round "5"]
[White "Antonica, Dragos-Andrei"]
[Black "Luczak, Filip"]
[Result "0-1"]
[ECO "A48"]
[WhiteElo "2188"]
[BlackElo "1866"]
[Annotator "NA"]
[PlyCount "78"]
[EventDate "2017.??.??"]
[EventType "swiss"]
[EventCountry "ROU"]
[SourceTitle "playchess.com"]
[Source "ChessBase"]
[SourceQuality "1"]
[TimeControl "40/5400+30:1800+30"]

1. d4 Nf6 2. Nf3 g6 3. c4 Bg7 4. Nc3 d6 5. h3 Na6 6. e4 O-O 7. Be3 c5 8. d5 {LiveBook: 48 Games} Qa5 9. Qd2 $14 Nc7 10. Bd3 a6 11. O-O b5 12. e5 Nd7 13. exd6 exd6 14. Bh6 bxc4 15. Bxg7 Kxg7 16. Bxc4 Nb6 17. Bb3 Bf5 18. g4 Bd7 19. Qf4 Nb5 20. Ne4 c4 21. Nf6 Nxd5 22. Nxd5 f5 23. g5 cxb3 24. Nf6 Bc6 25. axb3 Qd8 26. Qh4 h5 27. Nd4 Qb6 28. Ne6+ Kf7 29. Nxf8 Nd4 30. Qg3 Ne2+ 31. Kh2 Nxg3 32. fxg3 Qxb3 33. Rf2 Rxf8 34. Rc1 Qb6 35. Rfc2 Be4 36. Nd7 Qb5 37. Nxf8 Bxc2 38. Rxc2 Kxf8 39. Rc8+ Kf7 0-1

[Event "EYCC 2017"]
[Site "Mamaia"]
[Date "2017.09.09"]
[Round "5"]
[White "Kanakova, Natalie"]
[Black "Janiashvili, Mariami"]
[Result "0-1"]
[ECO "C10"]
[WhiteElo "2186"]
[BlackElo "1875"]
[Annotator "NA"]
[PlyCount "108"]
[EventDate "2017.??.??"]
[EventType "swiss"]
[EventCountry "ROU"]
[SourceTitle "playchess.com"]
[Source "ChessBase"]
[SourceQuality "1"]
[TimeControl "40/5400+30:1800+30"]

1. e4 {[%emt 0:00:00]} e6 {[%emt 0:00:02]} 2. d4 {[%emt 0:00:00]} d5 {[%emt 0:00:02]} 3. Nc3 {[%emt 0:00:48]} dxe4 {[%emt 0:00:04]} 4. Nxe4 {[%emt 0:00:04]} Bd7 {[%emt 0:00:04]} 5. Nf3 {[%emt 0:01:34]} Bc6 {[%emt 0:00:41]} 6. Bd3 {[%emt 0:06:28]} Nd7 {[%emt 0:00:05]} 7. O-O {[%emt 0:04:23]} Ngf6 {[%emt 0:00:27]} 8. Qe2 {[%emt 0:01:02]} Nxe4 {[%emt 0:00:42]} 9. Bxe4 {[%emt 0:00:06]} Bxe4 {[%emt 0:00:02]} 10. Qxe4 {[%emt 0:00:09]} c6 {[%emt 0:01:11]} 11. c4 {[%emt 0:04:35]} Nf6 {[%emt 0:01:20]} 12. Qe2 {[%emt 0:01:01]} Be7 {[%emt 0:01:27]} 13. Bd2 {[%emt 0:02:57]} O-O {[%emt 0:05:22] C10: French with 3 Nc3: Unusual Black 3rd moves and 3...dxe4} 14. Bc3 {[%emt 0:00:32]} (14. Rad1 Qb6 15. Bc1 a5 16. d5 cxd5 17. cxd5 Ra6 18. Rd3 Qb5 19. dxe6 Rxe6 20. Qd1 Re4 21. Rb3 {½-½ (33) Lagerman,R (2347)-Bromann,T (2434) Reykjavik 2010}) 14... Qc7 {[%emt 0:05:31]} 15. Rad1 {[%emt 0:06:52]} Rad8 {[%emt 0:02:49]} 16. Ne5 {[%emt 0:02:56]} Nd7 $146 {[%emt 0:02:50]} ({Predecessor:} 16... c5 17. dxc5 Bxc5 18. b4 Be7 19. a3 Rxd1 20. Rxd1 Rc8 21. c5 Nd5 22. Bb2 a5 23. Nd3 b6 {0-1 (23) Tripp,G-Brousek,J ICCF email 2001}) 17. Ng4 {[%emt 0:07:14]} Qf4 {[%emt 0:07:30]} 18. Bd2 {[%emt 0:11:54]} Qf5 {[%emt 0:00:54]} 19. Ne3 {[%emt 0:01:54]} Qg6 {[%emt 0:01:22]} 20. f4 {[%emt 0:07:16]} Qe4 {[%emt 0:03:15]} 21. Qf2 {[%emt 0:04:04]} Bf6 {[%emt 0:11:00]} 22. Bc3 {[%emt 0:03:27]} c5 {[%emt 0:04:15]} 23. Ng4 {[%emt 0:05:05]} Bxd4 {[%emt 0:14:11]} 24. Bxd4 {[%emt 0:00:05]} cxd4 {[%emt 0:00:02]} 25. Rxd4 {[%emt 0:00:13]} Qf5 {[%emt 0:00:05]} 26. Ne3 {[%emt 0:04:29]} Qf6 {[%emt 0:02:27]} 27. Rfd1 {[%emt 0:00:14]} Nb6 {[%emt 0:02:26]} 28. Ng4 {[%emt 0:01:13]} Qe7 {[%emt 0:00:08]} 29. b3 {[%emt 0:02:39]} Nc8 {[%emt 0:08:13]} 30. R1d3 $14 {[%emt 0:05:15]} a5 {[%emt 0:07:15]} 31. Kf1 {[%emt 0:03:38]} Rxd4 {[%emt 0:08:18]} 32. Qxd4 {[%emt 0:00:38]} Qh4 {[%emt 0:00:17]} 33. Nf2 {[%emt 0:09:35]} Ne7 {[%emt 0:03:01]} 34. Qd8 {[%emt 0:00:57]} g6 {[%emt 0:01:01]} 35. g3 {[%emt 0:00:32]} Qf6 {[%emt 0:01:03]} 36. Qxa5 {[%emt 0:00:17]} Nc6 {[%emt 0:01:55]} 37. Qd2 {[%emt 0:00:16]} Ra8 {[%emt 0:01:09]} 38. a4 {[%emt 0:00:56]} Ra5 {[%emt 0:01:42]} 39. Ng4 {[%emt 0:02:09]} Qa1+ {[%emt 0:00:55]} 40. Kg2 {[%emt 0:00:00]} h5 {[%emt 0:00:59]} 41. Nf2 {[%emt 0:06:25]} h4 {[%emt 0:04:05]} 42. g4 {[%emt 0:01:03]} Ra8 {[%emt 0:03:17]} 43. Rd7 {[%emt 0:00:59]} Qb1 {[%emt 0:00:32]} 44. Qd3 {[%emt 0:06:07]} Qc1 {[%emt 0:00:31]} 45. Qd2 {[%emt 0:05:23]} Qb1 {[%emt 0:00:17]} 46. f5 {[%emt 0:02:09]} h3+ {[%emt 0:07:21]} 47. Kxh3 {[%emt 0:01:55]} Qf1+ {[%emt 0:19:39]} 48. Kg3 {[%emt 0:07:32]} Qg1+ {[%emt 0:00:10]} 49. Kf4 {[%emt 0:00:13]} Qxh2+ {[%emt 0:00:40]} 50. Kg5 {[%emt 0:02:13]} Ne5 {[%emt 0:00:23]} 51. Rd8+ {[%emt 0:00:03]} Rxd8 {[%emt 0:00:05]} 52. Qxd8+ {[%emt 0:00:04]} Kh7 {[%emt 0:00:04]} 53. fxg6+ {[%emt 0:04:12]} Nxg6 {[%emt 0:00:17]} 54. Nh3 {[%emt 0:00:42]} Qe5# {[%emt 0:00:34] Ng1} 0-1